[Event "*** Titled Tuesday Blitz"]
[Site "Chess.com"]
[Date "2020.11.10"]
[Round "3"]
[White "kuban1991"]
[Black "sokidze"]
[Result "1-0"]
[WhiteElo "2883"]
[BlackElo "2572"]
[TimeControl "180+1"]
[EndTime "10:32:14 PST"]
[Termination "kuban1991 won by resignation"]

1. Nf3 {[%clk 0:02:59.7]} 1... c5 {[%clk 0:02:59.4]} 2. g3 {[%clk 0:02:59.6]}
2... Nc6 {[%clk 0:02:59.4]} 3. Bg2 {[%clk 0:03:00.2]} 3... e5 {[%clk 0:02:59.3]}
4. c4 {[%clk 0:02:59.7]} 4... g6 {[%clk 0:02:59.5]} 5. O-O {[%clk 0:02:59.6]}
5... Bg7 {[%clk 0:02:59.7]} 6. Nc3 {[%clk 0:03:00.2]} 6... Nge7 {[%clk
0:02:59.8]} 7. Ne1 {[%clk 0:03:00.6]} 7... O-O {[%clk 0:02:59]} 8. Nc2 {[%clk
0:03:00.6]} 8... d6 {[%clk 0:02:59.5]} 9. Ne3 {[%clk 0:02:59.8]} 9... Be6 {[%clk
0:03:00.1]} 10. Ned5 {[%clk 0:02:58.9]} 10... Qd7 {[%clk 0:03:00.5]} 11. d3
{[%clk 0:02:58.6]} 11... Bh3 {[%clk 0:03:00.7]} 12. e3 {[%clk 0:02:55.3]} 12...
Bxg2 {[%clk 0:02:55.2]} 13. Kxg2 {[%clk 0:02:56.2]} 13... Nxd5 {[%clk
0:02:55.5]} 14. Nxd5 {[%clk 0:02:56.1]} 14... Ne7 {[%clk 0:02:51.4]} 15. Qf3
{[%clk 0:02:56.1]} 15... Nxd5 {[%clk 0:02:16]} 16. Qxd5 {[%clk 0:02:57]} 16...
Rab8 {[%clk 0:02:09.9]} 17. Rb1 {[%clk 0:02:55.7]} 17... b5 {[%clk 0:02:05]} 18.
b3 {[%clk 0:02:55.2]} 18... Qb7 {[%clk 0:01:56.9]} 19. e4 {[%clk 0:02:48.6]}
19... Qxd5 {[%clk 0:01:54.7]} 20. cxd5 {[%clk 0:02:48.3]} 20... f5 {[%clk
0:01:53]} 21. Bd2 {[%clk 0:02:43.7]} 21... a6 {[%clk 0:01:39.2]} 22. Rfc1 {[%clk
0:02:43]} 22... Rfc8 {[%clk 0:01:29.1]} 23. f3 {[%clk 0:02:42.4]} 23... b4
{[%clk 0:01:06.6]} 24. Rc2 {[%clk 0:02:40.1]} 24... a5 {[%clk 0:01:03]} 25. a3
{[%clk 0:02:28]} 25... bxa3 {[%clk 0:00:37.7]} 26. Ra2 {[%clk 0:02:27.2]} 26...
c4 {[%clk 0:00:26.8]} 27. dxc4 {[%clk 0:02:23.4]} 27... Rxc4 {[%clk 0:00:25.2]}
28. Bxa5 {[%clk 0:02:15.5]} 28... fxe4 {[%clk 0:00:24]} 29. bxc4 {[%clk
0:02:11.8]} 29... Rxb1 {[%clk 0:00:20]} 30. Rxa3 {[%clk 0:02:11.3]} 30... Rb2+
{[%clk 0:00:16.4]} 31. Kh3 {[%clk 0:02:05.1]} 31... Rc2 {[%clk 0:00:17.3]} 32.
fxe4 {[%clk 0:01:45.7]} 32... Rxc4 {[%clk 0:00:17.5]} 33. Re3 {[%clk 0:01:45.7]}
33... h5 {[%clk 0:00:17.5]} 34. Bd8 {[%clk 0:01:32.2]} 34... Rc8 {[%clk
0:00:12.7]} 35. Be7 {[%clk 0:01:31.5]} 35... Bf8 {[%clk 0:00:12.7]} 36. Bg5
{[%clk 0:01:31.8]} 36... Rc4 {[%clk 0:00:12]} 37. g4 {[%clk 0:01:31.9]} 37...
hxg4+ {[%clk 0:00:11.8]} 38. Kxg4 {[%clk 0:01:32.8]} 38... Rc2 {[%clk
0:00:12.4]} 39. h4 {[%clk 0:01:32.6]} 39... Rg2+ {[%clk 0:00:12.3]} 40. Kf3
{[%clk 0:01:32.3]} 40... Rc2 {[%clk 0:00:11.6]} 41. Rb3 {[%clk 0:01:32.2]} 41...
Rc7 {[%clk 0:00:10.6]} 42. Rb8 {[%clk 0:01:31.6]} 42... Kf7 {[%clk 0:00:10.5]}
43. Rd8 {[%clk 0:01:30.9]} 43... Be7 {[%clk 0:00:09]} 44. Rh8 {[%clk 0:01:29.3]}
44... Kg7 {[%clk 0:00:07]} 45. Re8 {[%clk 0:01:24.8]} 45... Bxg5 {[%clk
0:00:05.4]} 46. hxg5 {[%clk 0:01:25.7]} 46... Rc3+ {[%clk 0:00:06]} 47. Kf2
{[%clk 0:01:24.7]} 47... Rc4 {[%clk 0:00:03.6]} 48. Ke3 {[%clk 0:01:24.3]} 48...
Rc3+ {[%clk 0:00:04.1]} 49. Kd2 {[%clk 0:01:24.5]} 49... Rg3 {[%clk 0:00:02.6]}
50. Re6 {[%clk 0:01:24.8]} 50... Rxg5 {[%clk 0:00:02.4]} 51. Rxd6 {[%clk
0:01:24.3]} 51... Rg2+ {[%clk 0:00:03]} 52. Ke3 {[%clk 0:01:24.4]} 52... Ra2
{[%clk 0:00:03.3]} 53. Re6 {[%clk 0:01:23.6]} 53... Ra3+ {[%clk 0:00:03.9]} 54.
Kf2 {[%clk 0:01:24]} 54... Ra2+ {[%clk 0:00:03.8]} 55. Kf3 {[%clk 0:01:24.4]}
55... Ra3+ {[%clk 0:00:04.2]} 56. Kg4 {[%clk 0:01:24.7]} 56... Re3 {[%clk
0:00:02.4]} 57. Rxe5 {[%clk 0:01:25]} 57... Kf6 {[%clk 0:00:03.3]} 58. Re6+
{[%clk 0:01:24.2]} 58... Kf7 {[%clk 0:00:03.7]} 59. Kf4 {[%clk 0:01:25.1]} 59...
Re1 {[%clk 0:00:03.6]} 60. Ke5 {[%clk 0:01:23.3]} 60... g5 {[%clk 0:00:02.7]}
61. Rf6+ {[%clk 0:01:18.9]} 61... Ke7 {[%clk 0:00:02.3]} 62. Rg6 {[%clk
0:01:19.1]} 62... Rg1 {[%clk 0:00:01.8]} 63. d6+ {[%clk 0:01:18.4]} 63... Kd7
{[%clk 0:00:02.3]} 64. Rg7+ {[%clk 0:01:18]} 64... Kc6 {[%clk 0:00:03]} 65. Ke6
{[%clk 0:01:18.1]} 65... Rd1 {[%clk 0:00:02.5]} 66. e5 {[%clk 0:01:19]} 66...
Rxd6+ {[%clk 0:00:01.1]} 67. exd6 {[%clk 0:01:18.8]} 1-0

[Event "*** Titled Tuesday Blitz"]
[Site "Chess.com"]
[Date "2020.11.10"]
[Round "3"]
[White "FormerProdigy"]
[Black "Flawless_Fighter"]
[Result "1-0"]
[WhiteElo "2860"]
[BlackElo "2618"]
[TimeControl "180+1"]
[EndTime "10:32:15 PST"]
[Termination "FormerProdigy won by checkmate"]

1. d4 {[%clk 0:03:00.9]} 1... Nf6 {[%clk 0:02:58.9]} 2. c4 {[%clk 0:03:00.9]}
2... e6 {[%clk 0:02:59.2]} 3. Nc3 {[%clk 0:03:01.1]} 3... Bb4 {[%clk 0:02:57.5]}
4. e3 {[%clk 0:03:01.3]} 4... O-O {[%clk 0:02:57]} 5. Bd3 {[%clk 0:03:01.6]}
5... d5 {[%clk 0:02:57.7]} 6. cxd5 {[%clk 0:03:02.5]} 6... exd5 {[%clk
0:02:57.2]} 7. Ne2 {[%clk 0:03:02.6]} 7... b6 {[%clk 0:02:43.1]} 8. a3 {[%clk
0:02:50.5]} 8... Bd6 {[%clk 0:02:42.8]} 9. b4 {[%clk 0:02:49.9]} 9... c6 {[%clk
0:02:32.5]} 10. O-O {[%clk 0:02:46.6]} 10... Bb7 {[%clk 0:02:29.3]} 11. Rb1
{[%clk 0:02:41.3]} 11... a5 {[%clk 0:02:19.5]} 12. f3 {[%clk 0:02:23.7]} 12...
axb4 {[%clk 0:02:18.1]} 13. axb4 {[%clk 0:02:24.6]} 13... Qc7 {[%clk 0:01:59.9]}
14. e4 {[%clk 0:01:44.4]} 14... dxe4 {[%clk 0:01:42.1]} 15. fxe4 {[%clk
0:01:45.3]} 15... Bxh2+ {[%clk 0:01:42.5]} 16. Kh1 {[%clk 0:01:45.4]} 16... Ng4
{[%clk 0:01:27.1]} 17. Nf4 {[%clk 0:01:45.4]} 17... Bxf4 {[%clk 0:00:56.7]} 18.
Bxf4 {[%clk 0:01:46.3]} 18... Qd7 {[%clk 0:00:57]} 19. e5 {[%clk 0:01:28.5]}
19... f5 {[%clk 0:00:25.3]} 20. exf6 {[%clk 0:00:45.4]} 20... Nxf6 {[%clk
0:00:25.4]} 21. Be5 {[%clk 0:00:34.3]} 21... Qe7 {[%clk 0:00:16.6]} 22. Qb3+
{[%clk 0:00:21.5]} 22... Kh8 {[%clk 0:00:16]} 23. Rbe1 {[%clk 0:00:19.7]} 23...
Qd8 {[%clk 0:00:10.2]} 24. Bxf6 {[%clk 0:00:14.8]} 24... gxf6 {[%clk 0:00:10.1]}
25. Qe6 {[%clk 0:00:11.7]} 25... Nd7 {[%clk 0:00:08]} 26. Qh3 {[%clk 0:00:10.9]}
26... Rf7 {[%clk 0:00:07.8]} 27. Rf4 {[%clk 0:00:10.5]} 27... c5 {[%clk
0:00:05.7]} 28. d5 {[%clk 0:00:08.1]} 28... cxb4 {[%clk 0:00:05]} 29. Ne4 {[%clk
0:00:08.4]} 29... Qg8 {[%clk 0:00:04]} 30. Nd6 {[%clk 0:00:07.5]} 30... Rg7
{[%clk 0:00:03.8]} 31. Nf5 {[%clk 0:00:07.6]} 31... Rf7 {[%clk 0:00:03.6]} 32.
Nh6 {[%clk 0:00:07.2]} 32... Qg7 {[%clk 0:00:03.9]} 33. Nxf7+ {[%clk 0:00:08.1]}
33... Qxf7 {[%clk 0:00:04.5]} 34. Bxh7 {[%clk 0:00:07.8]} 34... Ne5 {[%clk
0:00:03.7]} 35. Bg6+ {[%clk 0:00:06.3]} 35... Kg7 {[%clk 0:00:03.3]} 36. Bxf7
{[%clk 0:00:06.6]} 36... Rh8 {[%clk 0:00:04]} 37. Qxh8+ {[%clk 0:00:05.5]} 37...
Kxh8 {[%clk 0:00:04.9]} 38. Be6 {[%clk 0:00:06.1]} 38... Kg7 {[%clk 0:00:05]}
39. Rxb4 {[%clk 0:00:06]} 39... Ba6 {[%clk 0:00:04.2]} 40. Rxb6 {[%clk
0:00:06.1]} 40... Bd3 {[%clk 0:00:04.9]} 41. d6 {[%clk 0:00:06.1]} 41... Bg6
{[%clk 0:00:05]} 42. d7 {[%clk 0:00:06]} 42... Nxd7 {[%clk 0:00:04.7]} 43. Bxd7
{[%clk 0:00:06.9]} 43... Kf7 {[%clk 0:00:04.9]} 44. Rb7 {[%clk 0:00:06]} 44...
Bd3 {[%clk 0:00:04.9]} 45. Bf5+ {[%clk 0:00:05.9]} 45... Kg8 {[%clk 0:00:04.9]}
46. Bxd3 {[%clk 0:00:06.8]} 46... Kf8 {[%clk 0:00:05.5]} 47. Bg6 {[%clk
0:00:06.4]} 47... f5 {[%clk 0:00:05.8]} 48. Re8# {[%clk 0:00:07.3]} 1-0

[Event "*** Titled Tuesday Blitz"]
[Site "Chess.com"]
[Date "2020.11.10"]
[Round "3"]
[White "Bodnar_Mykola"]
[Black "sara_khm"]
[Result "0-1"]
[WhiteElo "2384"]
[BlackElo "2588"]
[TimeControl "180+1"]
[EndTime "10:32:16 PST"]
[Termination "sara_khm won by resignation"]

1. e4 {[%clk 0:03:00.9]} 1... e5 {[%clk 0:02:59.1]} 2. Nf3 {[%clk 0:03:01.1]}
2... Nc6 {[%clk 0:02:58.8]} 3. Bb5 {[%clk 0:02:59.7]} 3... a6 {[%clk 0:02:57.9]}
4. Ba4 {[%clk 0:02:59.5]} 4... Nf6 {[%clk 0:02:58.1]} 5. O-O {[%clk 0:02:58.1]}
5... b5 {[%clk 0:02:58.5]} 6. Bb3 {[%clk 0:02:57.6]} 6... Bc5 {[%clk 0:02:59.1]}
7. d3 {[%clk 0:02:56.4]} 7... d6 {[%clk 0:02:58.6]} 8. a4 {[%clk 0:02:54.2]}
8... Rb8 {[%clk 0:02:58.4]} 9. axb5 {[%clk 0:02:53.5]} 9... axb5 {[%clk
0:02:58.3]} 10. h3 {[%clk 0:02:48.8]} 10... h6 {[%clk 0:02:58]} 11. Nc3 {[%clk
0:02:46.1]} 11... O-O {[%clk 0:02:57.6]} 12. Be3 {[%clk 0:02:42.1]} 12... Nd4
{[%clk 0:02:52.1]} 13. Bxd4 {[%clk 0:02:41.1]} 13... Bxd4 {[%clk 0:02:51.7]} 14.
Nxd4 {[%clk 0:02:39.8]} 14... exd4 {[%clk 0:02:51.9]} 15. Ne2 {[%clk 0:02:40.2]}
15... c5 {[%clk 0:02:51.6]} 16. Ng3 {[%clk 0:02:35.1]} 16... Qc7 {[%clk
0:02:30.8]} 17. Ba2 {[%clk 0:01:59.2]} 17... Be6 {[%clk 0:02:20.7]} 18. Bxe6
{[%clk 0:01:55.3]} 18... fxe6 {[%clk 0:02:20.2]} 19. f4 {[%clk 0:01:55.9]} 19...
Rf7 {[%clk 0:02:19.7]} 20. Qd2 {[%clk 0:01:42]} 20... d5 {[%clk 0:02:14.7]} 21.
e5 {[%clk 0:01:40.2]} 21... Nd7 {[%clk 0:02:12.8]} 22. Ra6 {[%clk 0:01:37.3]}
22... Nf8 {[%clk 0:02:07.4]} 23. Rfa1 {[%clk 0:01:35.9]} 23... Ng6 {[%clk
0:01:53.1]} 24. Nh5 {[%clk 0:01:32.4]} 24... Rbf8 {[%clk 0:01:49.4]} 25. g3
{[%clk 0:01:23.9]} 25... Qc8 {[%clk 0:01:42.6]} 26. Ra7 {[%clk 0:01:01.9]} 26...
Qe8 {[%clk 0:01:38.8]} 27. Qe2 {[%clk 0:00:59.1]} 27... c4 {[%clk 0:01:34]} 28.
Qg4 {[%clk 0:00:58.7]} 28... Kh7 {[%clk 0:01:29.6]} 29. R1a6 {[%clk 0:00:54.6]}
29... Rxa7 {[%clk 0:01:27.3]} 30. Rxa7 {[%clk 0:00:54.2]} 30... Rf7 {[%clk
0:01:27.6]} 31. Ra6 {[%clk 0:00:50]} 31... Nf8 {[%clk 0:01:14.3]} 32. h4 {[%clk
0:00:39.6]} 32... Qc8 {[%clk 0:01:05.3]} 33. Rd6 {[%clk 0:00:33.1]} 33... cxd3
{[%clk 0:01:04.9]} 34. cxd3 {[%clk 0:00:32.1]} 34... Qc1+ {[%clk 0:01:04.9]} 35.
Kf2 {[%clk 0:00:29]} 35... Qxb2+ {[%clk 0:01:04.9]} 36. Qe2 {[%clk 0:00:27.5]}
36... Qa3 {[%clk 0:00:48.5]} 37. Rb6 {[%clk 0:00:20.3]} 37... b4 {[%clk
0:00:46.4]} 38. Qc2 {[%clk 0:00:20.3]} 38... Qc3 {[%clk 0:00:42.7]} 39. Rc6
{[%clk 0:00:19.5]} 39... Qxc2+ {[%clk 0:00:34.6]} 40. Rxc2 {[%clk 0:00:20.4]}
40... Rb7 {[%clk 0:00:33.1]} 41. Ra2 {[%clk 0:00:20.7]} 41... b3 {[%clk
0:00:33]} 42. Rb2 {[%clk 0:00:21.2]} 42... Nd7 {[%clk 0:00:33.4]} 43. Ke2 {[%clk
0:00:21.4]} 43... Nc5 {[%clk 0:00:32.8]} 44. f5 {[%clk 0:00:18.7]} 44... Na4
{[%clk 0:00:30.4]} 45. Rxb3 {[%clk 0:00:15.2]} 45... Rxb3 {[%clk 0:00:30.3]} 46.
fxe6 {[%clk 0:00:16.1]} 46... Rb6 {[%clk 0:00:30.3]} 47. Nf4 {[%clk 0:00:16.1]}
47... Nc3+ {[%clk 0:00:30.4]} 48. Kf3 {[%clk 0:00:16.7]} 48... g5 {[%clk
0:00:28.8]} 49. hxg5 {[%clk 0:00:15.8]} 49... hxg5 {[%clk 0:00:29]} 50. Nh5
{[%clk 0:00:15.6]} 50... Rxe6 {[%clk 0:00:28.3]} 51. Nf6+ {[%clk 0:00:14.5]}
51... Kg6 {[%clk 0:00:28.2]} 52. Ng4 {[%clk 0:00:15.1]} 52... Kf5 {[%clk
0:00:26.7]} 53. Nf6 {[%clk 0:00:15.3]} 53... Kxe5 {[%clk 0:00:25.9]} 54. Ng4+
{[%clk 0:00:15.2]} 54... Kd6 {[%clk 0:00:25.9]} 0-1

[Event "*** Titled Tuesday Blitz"]
[Site "Chess.com"]
[Date "2020.11.10"]
[Round "3"]
[White "dosto07"]
[Black "Michaelson_11"]
[Result "1-0"]
[WhiteElo "2325"]
[BlackElo "2120"]
[TimeControl "180+1"]
[EndTime "10:32:16 PST"]
[Termination "dosto07 won by resignation"]

1. d4 {[%clk 0:03:00.9]} 1... Nf6 {[%clk 0:02:59.2]} 2. Nf3 {[%clk 0:03:00]}
2... g6 {[%clk 0:02:56.8]} 3. Bf4 {[%clk 0:02:58.1]} 3... Bg7 {[%clk 0:02:56]}
4. Nc3 {[%clk 0:02:58]} 4... d6 {[%clk 0:02:47.2]} 5. e4 {[%clk 0:02:57.4]} 5...
O-O {[%clk 0:02:42.3]} 6. Qd2 {[%clk 0:02:57.2]} 6... c5 {[%clk 0:02:30.9]} 7.
d5 {[%clk 0:02:56.2]} 7... Bd7 {[%clk 0:02:17]} 8. a4 {[%clk 0:02:54.8]} 8... a6
{[%clk 0:02:14.7]} 9. Be2 {[%clk 0:02:50.6]} 9... Nh5 {[%clk 0:02:07.6]} 10. Bh6
{[%clk 0:02:48]} 10... f5 {[%clk 0:01:46.5]} 11. O-O {[%clk 0:02:38.1]} 11...
Qe8 {[%clk 0:01:35.4]} 12. Rfe1 {[%clk 0:02:26.4]} 12... f4 {[%clk 0:01:14.2]}
13. Bxg7 {[%clk 0:02:24.3]} 13... Nxg7 {[%clk 0:01:15.1]} 14. e5 {[%clk
0:02:17.6]} 14... dxe5 {[%clk 0:01:13.1]} 15. Nxe5 {[%clk 0:02:14.6]} 15... Bf5
{[%clk 0:00:54.9]} 16. d6 {[%clk 0:02:07.3]} 16... exd6 {[%clk 0:00:50.2]} 17.
Bc4+ {[%clk 0:02:02.1]} 17... Kh8 {[%clk 0:00:47]} 18. Nf7+ {[%clk 0:01:58.3]}
18... Qxf7 {[%clk 0:00:39.2]} 19. Bxf7 {[%clk 0:01:56.8]} 19... Rxf7 {[%clk
0:00:40.1]} 20. Qxd6 {[%clk 0:01:52.2]} 20... Nc6 {[%clk 0:00:33.5]} 21. Qxc5
{[%clk 0:01:45.9]} 21... Bxc2 {[%clk 0:00:31.3]} 22. Nd5 {[%clk 0:01:36.4]}
22... Bb3 {[%clk 0:00:20.5]} 23. Ne7 {[%clk 0:01:08]} 23... Nxe7 {[%clk
0:00:12.3]} 24. Rxe7 {[%clk 0:01:06.8]} 24... Rxe7 {[%clk 0:00:05.2]} 25. Qxe7
{[%clk 0:01:05.5]} 25... Bd5 {[%clk 0:00:05.6]} 26. Rd1 {[%clk 0:01:03]} 26...
Bc6 {[%clk 0:00:05.1]} 27. Rd8+ {[%clk 0:00:59.7]} 27... Rxd8 {[%clk 0:00:05.3]}
28. Qxd8+ {[%clk 0:00:59.6]} 28... Ne8 {[%clk 0:00:06.2]} 29. Qd4+ {[%clk
0:00:56.5]} 29... Kg8 {[%clk 0:00:06.4]} 30. Qxf4 {[%clk 0:00:57]} 30... Kg7
{[%clk 0:00:05.1]} 31. h3 {[%clk 0:00:57.4]} 31... Nf6 {[%clk 0:00:05]} 32. Qe5
{[%clk 0:00:56]} 32... Kf7 {[%clk 0:00:04.8]} 33. b3 {[%clk 0:00:54.8]} 33...
Nd5 {[%clk 0:00:04.1]} 34. g4 {[%clk 0:00:52.3]} 34... Nf6 {[%clk 0:00:03.2]}
35. Kh2 {[%clk 0:00:50.8]} 35... Ne4 {[%clk 0:00:03.1]} 36. f4 {[%clk
0:00:46.3]} 36... Nf6 {[%clk 0:00:02.5]} 37. Kg1 {[%clk 0:00:29.8]} 37... Nd7
{[%clk 0:00:02.4]} 38. Qd6 {[%clk 0:00:29]} 38... Nf6 {[%clk 0:00:02.3]} 39. Kf1
{[%clk 0:00:27.9]} 39... Nd5 {[%clk 0:00:02.5]} 40. Kf2 {[%clk 0:00:26.5]} 40...
Nf6 {[%clk 0:00:01.4]} 41. Ke3 {[%clk 0:00:25.2]} 41... Ne4 {[%clk 0:00:02.3]}
42. Qxc6 {[%clk 0:00:21.1]} 42... bxc6 {[%clk 0:00:02]} 43. Kxe4 {[%clk
0:00:21.6]} 43... Ke6 {[%clk 0:00:02.9]} 44. b4 {[%clk 0:00:20.4]} 44... Kf6
{[%clk 0:00:02.7]} 45. Kd4 {[%clk 0:00:17.6]} 45... g5 {[%clk 0:00:01.9]} 46. f5
{[%clk 0:00:16.5]} 46... h5 {[%clk 0:00:02.3]} 47. Kc5 {[%clk 0:00:16.3]} 47...
hxg4 {[%clk 0:00:02.7]} 48. hxg4 {[%clk 0:00:15.6]} 48... Ke5 {[%clk 0:00:03.6]}
49. Kxc6 {[%clk 0:00:15.2]} 49... Kf4 {[%clk 0:00:04.5]} 50. f6 {[%clk
0:00:13.2]} 50... Kxg4 {[%clk 0:00:05.4]} 51. f7 {[%clk 0:00:13.5]} 1-0

[Event "*** Titled Tuesday Blitz"]
[Site "Chess.com"]
[Date "2020.11.10"]
[Round "3"]
[White "KetiGrant"]
[Black "Fins0905"]
[Result "0-1"]
[WhiteElo "2398"]
[BlackElo "2621"]
[TimeControl "180+1"]
[EndTime "10:32:20 PST"]
[Termination "Fins0905 won on time"]

1. e4 {[%clk 0:03:00.9]} 1... d5 {[%clk 0:02:59.6]} 2. exd5 {[%clk 0:03:00.3]}
2... Qxd5 {[%clk 0:03:00.5]} 3. Nc3 {[%clk 0:02:59.3]} 3... Qa5 {[%clk
0:02:59.9]} 4. d4 {[%clk 0:02:59.1]} 4... Nf6 {[%clk 0:03:00.1]} 5. Nf3 {[%clk
0:02:58.2]} 5... Bf5 {[%clk 0:02:59.5]} 6. Bc4 {[%clk 0:02:57.8]} 6... e6 {[%clk
0:02:59.2]} 7. Bd2 {[%clk 0:02:57.7]} 7... Bb4 {[%clk 0:02:59]} 8. a3 {[%clk
0:02:54.3]} 8... Bxc3 {[%clk 0:02:58.9]} 9. Bxc3 {[%clk 0:02:53.5]} 9... Qb6
{[%clk 0:02:59.6]} 10. b3 {[%clk 0:02:37.8]} 10... Nc6 {[%clk 0:02:57.2]} 11.
Qe2 {[%clk 0:02:27.8]} 11... O-O-O {[%clk 0:02:49.9]} 12. Rd1 {[%clk 0:02:26]}
12... Bg4 {[%clk 0:02:43.8]} 13. O-O {[%clk 0:02:10.7]} 13... Bxf3 {[%clk
0:02:38.5]} 14. Qxf3 {[%clk 0:02:10.1]} 14... Nxd4 {[%clk 0:02:39]} 15. Qg3
{[%clk 0:02:01.2]} 15... Ne4 {[%clk 0:01:22.5]} 16. Qe3 {[%clk 0:01:43.1]} 16...
Nxc3 {[%clk 0:00:53]} 17. Qxc3 {[%clk 0:01:43]} 17... Rd6 {[%clk 0:00:42.7]} 18.
Rd2 {[%clk 0:01:38]} 18... Rhd8 {[%clk 0:00:40]} 19. Rfd1 {[%clk 0:01:36.8]}
19... g6 {[%clk 0:00:37.3]} 20. h3 {[%clk 0:01:19.2]} 20... Kb8 {[%clk
0:00:37.1]} 21. Qe3 {[%clk 0:01:10.9]} 21... Nf5 {[%clk 0:00:26.8]} 22. Qg5
{[%clk 0:00:47]} 22... c5 {[%clk 0:00:11.2]} 23. Bd3 {[%clk 0:00:38.3]} 23...
Nd4 {[%clk 0:00:09.5]} 24. Qf6 {[%clk 0:00:36.5]} 24... Qc7 {[%clk 0:00:08.7]}
25. Kh1 {[%clk 0:00:20.3]} 25... a6 {[%clk 0:00:08.4]} 26. b4 {[%clk 0:00:19.8]}
26... c4 {[%clk 0:00:06.8]} 27. Be4 {[%clk 0:00:19.5]} 27... c3 {[%clk
0:00:06.2]} 28. Rxd4 {[%clk 0:00:17.4]} 28... Rxd4 {[%clk 0:00:03.1]} 29. Rxd4
{[%clk 0:00:17.3]} 29... Rxd4 {[%clk 0:00:03]} 30. Qxd4 {[%clk 0:00:18.1]} 30...
Qf4 {[%clk 0:00:03.6]} 31. Qe3 {[%clk 0:00:16.3]} 31... Qe5 {[%clk 0:00:03.4]}
32. Kg1 {[%clk 0:00:16.5]} 32... a5 {[%clk 0:00:02.4]} 33. bxa5 {[%clk
0:00:13.5]} 33... Qxa5 {[%clk 0:00:03.3]} 34. Qd4 {[%clk 0:00:11.4]} 34... Qxa3
{[%clk 0:00:03]} 35. Qd8+ {[%clk 0:00:10.3]} 35... Ka7 {[%clk 0:00:02.9]} 36.
Qd4+ {[%clk 0:00:09.6]} 36... Kb8 {[%clk 0:00:03.1]} 37. Qd7 {[%clk 0:00:08.6]}
37... Qb4 {[%clk 0:00:02.7]} 38. Bf3 {[%clk 0:00:05.8]} 38... Qb1+ {[%clk
0:00:03.1]} 39. Kh2 {[%clk 0:00:05.2]} 39... Ka7 {[%clk 0:00:04]} 40. g3 {[%clk
0:00:05.2]} 40... f5 {[%clk 0:00:04.1]} 41. Qd4+ {[%clk 0:00:05.1]} 41... Ka6
{[%clk 0:00:04]} 42. Qxc3 {[%clk 0:00:05.5]} 42... b5 {[%clk 0:00:03.6]} 43.
Qc6+ {[%clk 0:00:03.9]} 43... Ka5 {[%clk 0:00:03.8]} 44. Qc3+ {[%clk 0:00:03.5]}
44... b4 {[%clk 0:00:03.8]} 45. Qb3 {[%clk 0:00:01.8]} 45... Qa1 {[%clk
0:00:03.7]} 46. Kg2 {[%clk 0:00:01.1]} 46... Kb5 {[%clk 0:00:04.2]} 0-1

[Event "*** Titled Tuesday Blitz"]
[Site "Chess.com"]
[Date "2020.11.10"]
[Round "3"]
[White "LiamVrolijk"]
[Black "Federtiu"]
[Result "1-0"]
[WhiteElo "2816"]
[BlackElo "2555"]
[TimeControl "180+1"]
[EndTime "10:32:21 PST"]
[Termination "LiamVrolijk won on time"]

1. d4 {[%clk 0:03:00.1]} 1... g6 {[%clk 0:02:55.6]} 2. e4 {[%clk 0:03:00.5]}
2... Bg7 {[%clk 0:02:54.5]} 3. Nf3 {[%clk 0:03:00.3]} 3... d6 {[%clk 0:02:53.7]}
4. Be3 {[%clk 0:02:57.1]} 4... Nf6 {[%clk 0:02:50.3]} 5. Nc3 {[%clk 0:02:57.1]}
5... O-O {[%clk 0:02:49.5]} 6. Qd2 {[%clk 0:02:56.5]} 6... Ng4 {[%clk
0:02:44.1]} 7. Bg5 {[%clk 0:02:52.3]} 7... h6 {[%clk 0:02:43.1]} 8. Bh4 {[%clk
0:02:51.2]} 8... c5 {[%clk 0:02:21.8]} 9. h3 {[%clk 0:02:31.2]} 9... cxd4 {[%clk
0:02:19.6]} 10. Nxd4 {[%clk 0:02:32.1]} 10... Ne5 {[%clk 0:02:17]} 11. f4 {[%clk
0:02:20.8]} 11... Nec6 {[%clk 0:02:16.6]} 12. Nb3 {[%clk 0:02:20.8]} 12... Nd7
{[%clk 0:01:57.8]} 13. O-O-O {[%clk 0:02:20.1]} 13... a5 {[%clk 0:01:56.8]} 14.
Bb5 {[%clk 0:02:03.3]} 14... Qb6 {[%clk 0:01:41.5]} 15. a4 {[%clk 0:01:56.6]}
15... Re8 {[%clk 0:01:27.6]} 16. Nd5 {[%clk 0:01:53.1]} 16... Qd8 {[%clk
0:01:01.8]} 17. Bf2 {[%clk 0:01:24.9]} 17... Nf6 {[%clk 0:00:48.9]} 18. Bb6
{[%clk 0:00:50.2]} 18... Qd7 {[%clk 0:00:48.3]} 19. Rhe1 {[%clk 0:00:47.6]}
19... Rf8 {[%clk 0:00:36.1]} 20. Nc7 {[%clk 0:00:38.1]} 20... Rb8 {[%clk
0:00:33.9]} 21. Nxa5 {[%clk 0:00:35.6]} 21... Ne8 {[%clk 0:00:27.9]} 22. Nd5
{[%clk 0:00:33.1]} 22... e6 {[%clk 0:00:12.1]} 23. Nxc6 {[%clk 0:00:28.7]} 23...
bxc6 {[%clk 0:00:11.7]} 24. Bxc6 {[%clk 0:00:29.6]} 24... Qxc6 {[%clk 0:00:09]}
25. Ne7+ {[%clk 0:00:29.2]} 25... Kh8 {[%clk 0:00:09.3]} 26. Nxc6 {[%clk
0:00:29.6]} 26... Rxb6 {[%clk 0:00:09.8]} 27. Nd4 {[%clk 0:00:30.1]} 27... Ba6
{[%clk 0:00:09.2]} 28. Nb5 {[%clk 0:00:29.9]} 28... Bxb5 {[%clk 0:00:08.1]} 29.
axb5 {[%clk 0:00:30]} 29... Rxb5 {[%clk 0:00:08.4]} 30. c3 {[%clk 0:00:27.9]}
30... Rb6 {[%clk 0:00:08.3]} 31. Qe3 {[%clk 0:00:27]} 31... Ra6 {[%clk
0:00:06.8]} 32. Kc2 {[%clk 0:00:26.9]} 32... Nc7 {[%clk 0:00:07.2]} 33. Ra1
{[%clk 0:00:27.5]} 33... Rc6 {[%clk 0:00:07.7]} 34. Ra5 {[%clk 0:00:24.8]} 34...
Rb8 {[%clk 0:00:07]} 35. Qa7 {[%clk 0:00:24.7]} 35... Rcb6 {[%clk 0:00:05.4]}
36. Qxc7 {[%clk 0:00:22.5]} 36... Rxb2+ {[%clk 0:00:04.4]} 37. Kd3 {[%clk
0:00:23]} 37... R8b3 {[%clk 0:00:04.8]} 38. e5 {[%clk 0:00:21.2]} 38... Rxg2
{[%clk 0:00:03.2]} 39. Ra8+ {[%clk 0:00:19.9]} 39... Kh7 {[%clk 0:00:01.9]} 40.
Qxf7 {[%clk 0:00:20.5]} 40... h5 {[%clk 0:00:01.7]} 41. Qxe6 {[%clk 0:00:14.9]}
41... dxe5 {[%clk 0:00:01.6]} 42. Qxb3 {[%clk 0:00:13.4]} 1-0